[Event "CCT Chessable Masters Playin Match 2025"]
[Site "Online"]
[Date "2025.02.17"]
[Round "1.3"]
[White "Vachier-Lagrave, Maxime"]
[Black "Sevian, Samuel"]
[Result "0-1"]
[Annotator "TA"]
[ECO "C49"]
[WhiteElo "2729"]
[BlackElo "2692"]
[PlyCount "76"]
[EventDate "2025.02.13"]
[EventType "k.o."]
[EventCountry "NET"]
[SourceTitle "playchess.com"]
[Source "ChessBase"]
[SourceQuality "1"]
[TimeControl "600"]

{[%evp 27,76,43,39,34,39,37,43,0,0,-22,-15,-56,-60,-61,-62,-52,-62,-56,-55,-65,-75,-54,-77,-62,-66,-190,-174,-224,-233,-337,-335,-340,-337,-343,-344,-405,-352,-461,-481,-473,-476,-467,-471,-466,-471,-502,-490,-517,-514,-759,-754]} 1. e4 {[%emt 0:00:00]} e5 {[%emt 0:02:29]} 2. Nf3 {[%emt 0:00:02]} Nc6 {[%emt 0:00:01]} 3. Nc3 {[%emt 0:00:00]} Nf6 {[%emt 0:00:01]} 4. Bb5 {[%emt 0:00:01]} Bb4 {[%emt 0:00:02]} 5. O-O {[%emt 0:00:03]} O-O {[%emt 0:00:01]} 6. d3 {[%emt 0:00:01]} d6 {[%emt 0:00:00]} 7. Ne2 {[%emt 0:00:04]} Ne7 {[%emt 0:00:03]} 8. c3 {[%emt 0:00:01]} Ba5 {[%emt 0:00:01]} 9. Ng3 {[%emt 0:00:04]} c6 {[%emt 0:00:02]} 10. Ba4 {[%emt 0:00:02]} Ng6 {[%emt 0:00:01]} 11. d4 {[%emt 0:00:04]} Re8 {[%emt 0:00:05]} 12. Bc2 {[%emt 0:00:05]} Bc7 {[%emt 0:00:02]} 13. Re1 {[%emt 0:00:06]} h6 {[%emt 0:00:17]} 14. h3 {[%emt 0:00:07]} Be6 {[%emt 0:00:24]} 15. Be3 {[%emt 0:00:16] C49: Four Knights: 4 Bb5 Bb4.} a5 {[%emt 0:00:11]} 16. a4 {[%emt 0:00:12]} Qe7 {[%emt 0:00:09]} 17. Nf5 $146 {[%emt 0:00:08] White is slightly better.} (17. Qe2 Rad8 18. Rad1 Bc8 19. Bc1 Nh7 20. Bb3 Be6 21. Qc2 Nf4 22. Bxf4 exf4 23. Nf1 {½-½ Maze,S (2608)-Deepan Chakkravarthy,J (2471) London Classic op 8th 2016 (3)}) 17... Qf8 {[%emt 0:00:07]} 18. Qd2 {[%emt 0:00:06]} Rad8 {[%emt 0:00:11]} 19. Nxh6+ {[%emt 0:00:33]} gxh6 {[%emt 0:00:01]} 20. Bxh6 {[%emt 0:00:00]} Qe7 {[%emt 0:00:01]} 21. Bg5 {[%emt 0:00:00][%cal Od4d5]} Kg7 {[%emt 0:00:09]} 22. Nh4 {[%emt 0:00:13]} Nxh4 {[%emt 0:00:12]} 23. Bxh4 {[%emt 0:00:02][%cal Od4d5]} Rh8 {[%emt 0:00:01]} 24. Qg5+ {[%emt 0:00:28]} Kf8 {[%emt 0:00:01]} 25. Qg3 {[%emt 0:00:01]} Rh6 {[%emt 0:00:21]} 26. d5 {[%emt 0:00:09]} Bc8 $19 {[%emt 0:00:04]} 27. f4 {[%emt 0:00:19]} (27. Re3 Rg6 (27... cxd5 28. exd5 Ke8 29. Bg5 $11) 28. Bg5) 27... Rg6 {[%emt 0:00:14]} (27... cxd5 28. exd5 Rh5 29. Rad1 $11) 28. Bg5 {[%emt 0:00:55]} (28. Qh2 {was necessary.}) 28... exf4 {[%emt 0:00:24]} (28... cxd5 29. exd5 Rxg5 30. fxg5 Nxd5 31. Rf1 $17) 29. Qh4 {[%emt 0:00:01] and e5 would now be decisive} Qe5 {[%emt 0:00:01]} (29... cxd5 $2 {too greedy.} 30. exd5 Rxg5 31. Rxe7 Bb6+ 32. Kh1 Kxe7 33. Qxg5 $18) 30. Bxf4 {[%emt 0:00:02]} Qh5 {[%emt 0:00:01]} 31. Bg3 {[%emt 0:00:20] [#]} Bxh3 $1 {[%emt 0:00:08][%mdl 512] And now ...Qxh4 would win.} 32. Kh2 {[%emt 0:00:32]} (32. Qxh5 Nxh5) 32... Bd7 {[%emt 0:00:09] Black is clearly winning.} 33. Qxh5 {[%emt 0:00:02]} Nxh5 {[%emt 0:00:00]} 34. Bh4 {[%emt 0:00:01]} Re8 {[%emt 0:00:04]} 35. g3 {[%emt 0:00:06]} Rh6 {[%emt 0:00:10]} 36. Kg2 {[%emt 0:00:10] [#]} Nf4+ $1 {[%emt 0:00:07][%mdl 512]} 37. Kf3 {[%emt 0:00:02]} (37. gxf4 Rxh4) 37... Ng6 {[%emt 0:00:01]} 38. Bg5 {[%emt 0:00:03]} Rh2 {[%emt 0:00:01] White got outplayed after the opening.   Weighted Error Value: White=0.44/Black=0.04 (flawless)   Mistake:       	White=3     	---        Inaccurate:     	White=4     	---        OK:         	White=7     	Black=19     Best:        	White=2     	Black=2} 0-1

[Event "CCT Chessable Masters Playin Match 2025"]
[Site "Online"]
[Date "2025.02.17"]
[Round "1.3"]
[White "Giri, Anish"]
[Black "Lu, Shanglei"]
[Result "1-0"]
[Annotator "TA"]
[ECO "A13"]
[WhiteElo "2728"]
[BlackElo "2618"]
[PlyCount "145"]
[EventDate "2025.02.13"]
[EventType "k.o."]
[EventCountry "NET"]
[SourceTitle "playchess.com"]
[Source "ChessBase"]
[SourceQuality "1"]
[TimeControl "600"]

{[%evp 9,145,5,9,25,11,6,3,0,8,12,15,11,11,7,6,2,6,-6,8,11,17,14,25,22,29,17,14,17,28,12,28,10,36,21,41,32,47,9,36,18,38,40,45,0,40,0,32,25,52,38,39,30,32,31,43,48,71,73,59,75,56,80,84,65,70,54,64,68,75,50,78,43,95,18,33,45,52,42,47,39,27,33,59,83,73,32,34,43,60,15,47,26,48,15,25,0,87,0,0,-80,28,0,2,2,107,104,105,110,218,215,224,193,425,415,556,555,537,543,504,484,678,641,681,665,990,917,855,825,1465,1439,1347,1480,1453,1245,1350,856,652,637]} 1. c4 {[%emt 0:00:00]} Nf6 {[%emt 0:03:02]} 2. Nf3 {[%emt 0:00:02]} e6 {[%emt 0:00:01]} 3. g3 {[%emt 0:00:00]} d5 {[%emt 0:00:00]} 4. Bg2 {[%emt 0:00:00]} dxc4 {[%emt 0:00:00]} 5. Qa4+ {[%emt 0:00:01]} Bd7 {[%emt 0:00:01]} 6. Qxc4 {[%emt 0:00:01] A13: English Opening: 1...e6.} c5 {[%emt 0:00:01]} 7. Ne5 {[%emt 0:00:00]} Qc8 {[%emt 0:00:01]} 8. Qd3 {[%emt 0:00:01] The position is equal.} Nc6 {[%emt 0:00:01]} 9. Nxd7 {[%emt 0:00:01]} Nxd7 {[%emt 0:00:00]} 10. b3 {[%emt 0:00:00] Not much happening anymore} Be7 {[%emt 0:00:01]} 11. Bb2 {[%emt 0:00:01]} O-O {[%emt 0:00:00]} 12. Nc3 {[%emt 0:00:00]} Rd8 {[%emt 0:00:01]} 13. Rc1 {[%emt 0:00:01]} Nf6 {[%emt 0:00:03]} 14. Qb1 {[%emt 0:00:00]} Qd7 {[%emt 0:00:01]} 15. d3 {[%emt 0:00:01]} Nd4 {[%emt 0:00:02]} 16. O-O {[%emt 0:00:01]} Rac8 {[%emt 0:00:00]} 17. Rfd1 {[%emt 0:00:17]} b6 {[%emt 0:00:01]} 18. e3 {[%emt 0:00:12]} Nc6 {[%emt 0:00:04]} 19. Rd2 $146 {[%emt 0:00:02]} (19. a3 a6 20. Na4 Qa7 21. b4 Nb8 22. bxc5 b5 23. Bxf6 gxf6 24. Nc3 Rxc5 25. Qb2 {1-0 Nowak,L (2265)-Kishan,G (2128) Online Olym Disabilities rapid 2020 (4.1)}) 19... h6 {[%emt 0:00:02]} 20. Rcd1 {[%emt 0:00:01]} Qe8 {[%emt 0:00:02]} 21. Qa1 {[%emt 0:00:04]} Bf8 {[%emt 0:00:06]} 22. Ne2 {[%emt 0:00:15]} Nd5 {[%emt 0:00:01]} 23. Kh1 {[%emt 0:00:06]} Rc7 {[%emt 0:00:04]} 24. Ng1 {[%emt 0:00:05]} Rcd7 {[%emt 0:00:05]} 25. Nf3 {[%emt 0:00:05]} Ndb4 {[%emt 0:00:06][%cal Rb4d3]} 26. Ne1 {[%emt 0:00:06]} Qe7 {[%emt 0:00:06]} 27. h4 {[%emt 0:00:07]} Nd5 {[%emt 0:00:05]} 28. Kg1 {[%emt 0:00:02]} Ncb4 {[%emt 0:00:01]} 29. Nf3 {[%emt 0:00:02]} Nc6 {[%emt 0:00:01]} 30. Qb1 {[%emt 0:00:08]} Ndb4 {[%emt 0:00:04]} 31. a3 {[%emt 0:00:08]} Nd5 {[%emt 0:00:01]} 32. Rc1 {[%emt 0:00:01]} Na5 {[%emt 0:00:04]} 33. Ba1 {[%emt 0:00:09]} Rc7 {[%emt 0:00:03]} 34. Rdc2 {[%emt 0:00:04][%cal Ob3b4]} Rdc8 {[%emt 0:00:01]} 35. Be5 {[%emt 0:00:02]} Rd7 {[%emt 0:00:03] [#]} 36. b4 $1 {[%emt 0:00:04]} Nc6 {[%emt 0:00:12]} 37. bxc5 {[%emt 0:00:17]} bxc5 {[%emt 0:00:02]} 38. Ba1 {[%emt 0:00:12]} Qe8 {[%emt 0:00:19]} 39. Bf1 {[%emt 0:00:38]} Rb8 {[%emt 0:00:04]} 40. Qa2 {[%emt 0:00:01]} Rdb7 {[%emt 0:00:08]} (40... Rdd8 $14) 41. Bg2 {[%emt 0:00:12]} ({White should play} 41. d4 $16) 41... Na5 {[%emt 0:00:05]} 42. Be5 {[%emt 0:00:03]} Rd8 {[%emt 0:00:07]} 43. Nd2 {[%emt 0:00:05][%cal Bf3d2,Bd2e4,Be4c5][%mdl 32]} Qa4 {[%emt 0:00:10]} 44. Ne4 {[%emt 0:00:17]} Qb3 {[%emt 0:00:12]} 45. Qxb3 {[%emt 0:00:11]} (45. Nxc5 $2 Bxc5 46. Qxb3 Nxb3 $19) 45... Rxb3 {[%emt 0:00:08]} 46. Nxc5 {[%emt 0:00:08]} Rxa3 {[%emt 0:00:01]} 47. d4 {[%emt 0:00:09]} Nb4 $1 {[%emt 0:00:37]} 48. Re2 {[%emt 0:00:59]} Rc8 {[%emt 0:00:06]} 49. Rb1 {[%emt 0:00:15]} Nd5 {[%emt 0:00:06]} 50. Nd7 {[%emt 0:00:34]} Be7 {[%emt 0:00:24]} 51. Reb2 {[%emt 0:00:06]} f6 {[%emt 0:00:07]} 52. Rb8 {[%emt 0:00:14]} Rac3 {[%emt 0:00:03]} (52... Rxb8 $11 53. Bxb8 (53. Rxb8+ Kf7 $16) 53... Nb3) 53. Rxc8+ {[%emt 0:00:08]} (53. e4 $1 $16 {[%cal Re4d5]} Nb4 54. Rxc8+ Rxc8 55. Bf4) 53... Rxc8 $11 {[%emt 0:00:01]} 54. Bb8 {[%emt 0:00:00] [#]} (54. Ra1 $11 Nc6 55. Rc1) 54... Nc6 {[%emt 0:00:10]} (54... Nb6 $1 $17 55. Bh3 (55. Nxb6 $2 {perishes.} Rxb8 56. Kh1 axb6 $19) 55... Kf7 56. Bxa7 (56. Nxb6 $2 Rxb8 57. Rb5 axb6 $19) 56... Nxd7) 55. Rc1 {[%emt 0:00:12]} Kf7 {[%emt 0:00:02] And now ...Ke8 would win.} 56. Bf4 {[%emt 0:00:17]} g5 {[%emt 0:00:08]} (56... Bb4 $11) 57. hxg5 $16 {[%emt 0:00:03] White is more active. White now steadily converts the win.} hxg5 {[%emt 0:00:00] [#]} 58. Bxg5 {[%emt 0:00:04][%mdl 512]} Ke8 {[%emt 0:00:32] [#]} (58... fxg5 $16 59. Rxc6 Rxc6 60. Ne5+ Kf6 61. Nxc6 a6 62. Bxd5 exd5) (58... Ba3 59. Rc4) 59. Nxf6+ $1 $18 {[%emt 0:00:06][%mdl 512]} Bxf6 {[%emt 0:00:13]} 60. Bxf6 {[%emt 0:00:00]} Nxf6 $2 {[%emt 0:00:01]} (60... Nce7 61. Rxc8+ Nxc8) 61. Rxc6 {[%emt 0:00:03]} Rxc6 {[%emt 0:00:04]} 62. Bxc6+ {[%emt 0:00:00][%mdl 4096] Endgame KB-KN. White is two pawns up. White is clearly winning.} Ke7 {[%emt 0:00:00]} 63. Kf1 {[%emt 0:00:11]} Kd6 {[%emt 0:00:00]} 64. Ba4 {[%emt 0:00:01]} a5 {[%emt 0:00:01]} (64... Nd5 $142 65. Bc2 e5 66. dxe5+ Kxe5) 65. Ke2 {[%emt 0:00:04]} Ne4 {[%emt 0:00:01]} 66. Bc2 {[%emt 0:00:01]} Nc3+ {[%emt 0:00:08]} 67. Kd2 {[%emt 0:00:04]} Nd5 {[%emt 0:00:00]} 68. e4 {[%emt 0:00:02][%cal Be3e4,Be4e5][%mdl 32]} Nb4 {[%emt 0:00:02]} 69. Bb3 {[%emt 0:00:03]} Nc6 {[%emt 0:00:04]} 70. e5+ {[%emt 0:00:03]} Ke7 {[%emt 0:00:09]} 71. Kc3 {[%emt 0:00:01]} Nb4 {[%emt 0:00:07]} 72. Kc4 {[%emt 0:00:04] Strongly threatening Kb5.} Nd5 {[%emt 0:00:13]} 73. Bc2 {[%emt 0:00:08] Weighted Error Value: White=0.17 (very precise) /Black=0.25 (precise)   Mistake:       	White=3     	Black=7      Inaccurate:     	White=8     	Black=9      OK:         	White=24    	Black=17     Best:        	White=2     	---        Strong:       	---       	Black=1      Brilliant:      	White=2     	---} 1-0

[Event "CCT Chessable Masters Playin Match 2025"]
[Site "Online"]
[Date "2025.02.17"]
[Round "1.3"]
[White "Esipenko, Andrey"]
[Black "Andreikin, Dmitry"]
[Result "1-0"]
[Annotator "TA"]
[ECO "D35"]
[WhiteElo "2695"]
[BlackElo "2695"]
[PlyCount "141"]
[EventDate "2025.02.13"]
[EventType "k.o."]
[EventCountry "NET"]
[SourceTitle "playchess.com"]
[Source "ChessBase"]
[SourceQuality "1"]
[TimeControl "600"]

{[%evp 13,141,9,31,24,39,31,28,31,31,31,29,18,12,10,44,42,60,47,47,47,47,47,50,30,37,36,43,0,0,0,0,0,0,6,22,22,22,22,76,33,33,33,110,110,103,106,100,18,121,63,67,62,62,79,116,116,116,113,177,162,348,391,453,477,456,456,718,711,644,597,750,696,739,696,712,685,589,566,1643,1643,1544,1402,29950,29950,29951,12848,12850,12851,29939,29941,29943,29936,12850,12851,12851,29939,11496,0,2531,2067,29947,29950,12294,12397,1216,1082,29962,29956,5197,5616,29968,29969,29969,29967,29970,29965,29980,29981,29982,29983,29983,29981,29980,0,29982,29983,29984,29985,29994,29995]} 1. d4 {[%emt 0:00:01]} Nf6 {[%emt 0:01:36]} 2. c4 {[%emt 0:00:01]} e6 {[%emt 0:00:01]} 3. Nc3 {[%emt 0:00:00]} d5 {[%emt 0:00:00]} 4. cxd5 {[%emt 0:00:00]} exd5 {[%emt 0:00:00]} 5. Bg5 {[%emt 0:00:01]} c6 {[%emt 0:00:01]} 6. e3 {[%emt 0:00:00]} h6 {[%emt 0:00:00]} 7. Bh4 {[%emt 0:00:02]} Bf5 {[%emt 0:00:01]} 8. Qf3 {[%emt 0:00:04] D35: Queen's Gambit Declined: Exchange Variation.} Bh7 {[%emt 0:00:01] now scores much better than the old 8...Bg6.} 9. Bxf6 {[%emt 0:00:01]} Qxf6 {[%emt 0:00:00]} 10. Qxf6 {[%emt 0:00:01] White has an edge.} gxf6 {[%emt 0:00:00]} 11. Nge2 {[%emt 0:00:21][%cal Bg1e2,Be2c1,Bc1d3][%mdl 32]} Nd7 {[%emt 0:00:01]} 12. Nc1 $1 $146 {[%emt 0:00:16][%mdl 8] A top novelty.} (12. Ng3 Nb6 13. Nh5 Be7 14. O-O-O Rg8 15. Rg1 Nc8 16. Ne2 Nd6 17. Neg3 a5 18. Bd3 Bxd3 19. Rxd3 {0-1 Fedoseev,V (2687)-Andreikin,D (2729) Crunchlab PlayIn Match D1 rapid 2024 (2.4)}) 12... Nb6 {[%emt 0:00:04]} 13. Bd3 {[%emt 0:00:01]} Bxd3 {[%emt 0:00:03]} 14. Nxd3 {[%emt 0:00:01]} Rg8 {[%emt 0:00:02]} 15. g3 {[%emt 0:00:05]} f5 {[%emt 0:00:00]} 16. Ke2 {[%emt 0:00:01]} a5 {[%emt 0:00:09]} 17. Rhb1 {[%emt 0:00:23]} Bd6 {[%emt 0:00:10]} 18. a3 {[%emt 0:00:04]} Nc4 {[%emt 0:00:27]} 19. a4 {[%emt 0:00:11]} Bc7 {[%emt 0:00:17]} 20. b4 {[%emt 0:00:10]} axb4 {[%emt 0:00:05]} 21. Rxb4 {[%emt 0:00:00]} Ba5 {[%emt 0:00:09]} 22. Rb3 {[%emt 0:00:02]} Nd6 {[%emt 0:00:21]} 23. Nc5 {[%emt 0:00:10]} Bxc3 {[%emt 0:00:41]} (23... b6 $5 24. Nd3 $8 Bxc3 25. Rxc3 Nc4 $11) 24. Rxc3 {[%emt 0:00:02]} b6 $1 {[%emt 0:00:01]} 25. Nb3 {[%emt 0:00:42]} (25. Nd3 $5 Nc4 $8 26. Kf3 $11) 25... Nc4 {[%emt 0:00:05] [#]} (25... Kd7 $11) 26. a5 $1 {[%emt 0:00:04]} bxa5 {[%emt 0:00:10]} 27. Nd2 {[%emt 0:00:01]} Nxd2 {[%emt 0:00:08]} (27... Kd7 $1 $14) 28. Kxd2 $14 {[%emt 0:00:00][%mdl 4096] Endgame KRR-KRR. Black is a pawn up.} Kd7 {[%emt 0:00:11]} 29. Rca3 {[%emt 0:00:01] White is more active.} f4 {[%emt 0:00:34]} 30. gxf4 {[%emt 0:00:14]} (30. Rxa5 fxe3+ 31. fxe3 Rxa5 32. Rxa5 Rb8 $18) (30. exf4 $16 Rgb8 31. Rxa5 Rb2+ 32. Ke3 Re8+ 33. Kf3) 30... Rab8 {[%emt 0:00:07]} (30... Rg2 $11 {keeps the balance.}) 31. R1a2 {[%emt 0:00:08]} ({White should play} 31. Ke2 $1 $16) 31... Rg2 {[%emt 0:00:07][%csl LRf2,LRh2]} 32. Ke2 {[%emt 0:00:02]} ({Reject} 32. Rxa5 Rxf2+ 33. Kc3 Rf3 $17) 32... Rxh2 {[%emt 0:00:03]} 33. Rxa5 {[%emt 0:00:02] White leaves nothing to chance now.} Rb7 {[%emt 0:00:05]} 34. Ra7 {[%emt 0:00:07]} Kc7 {[%emt 0:00:08]} 35. Ra8 {[%emt 0:00:58]} h5 {[%emt 0:00:04]} (35... Kd6 $16 {was called for.} 36. Kf3 Ke6 37. Re8+ Kd7) 36. Kf3 {[%emt 0:00:01]} h4 $2 {[%emt 0:00:14]} (36... Kd6 37. Rc8 Kd7) 37. R2a7 $18 {[%emt 0:00:30]} h3 {[%emt 0:00:24] [#]} 38. Rxb7+ $1 {[%emt 0:00:03]} Kxb7 {[%emt 0:00:01] KR-KR} 39. Rf8 {[%emt 0:00:00]} c5 {[%emt 0:00:05]} (39... Rh1 $142 40. Rxf7+ Kb6) 40. Rxf7+ {[%emt 0:00:16]} Kc6 {[%emt 0:00:02]} 41. dxc5 {[%emt 0:00:12]} Kxc5 {[%emt 0:00:01]} 42. Rc7+ {[%emt 0:00:03]} Kd6 {[%emt 0:00:03] [#]} 43. Rc1 {[%emt 0:00:00]} Rg2 {[%emt 0:00:40] Against Rg1} 44. Rh1 {[%emt 0:00:03]} Rg8 {[%emt 0:00:06]} 45. Rxh3 {[%emt 0:00:01]} d4 {[%emt 0:00:00]} 46. Rh1 {[%emt 0:00:05]} Ke6 {[%emt 0:00:10]} 47. Rd1 {[%emt 0:00:01]} dxe3 {[%emt 0:00:02]} 48. fxe3 {[%emt 0:00:00]} Ra8 {[%emt 0:00:01]} 49. Rh1 {[%emt 0:00:03]} (49. e4 $142 Ra3+ 50. Kg4 Ra7 51. Rb1 Rg7+ 52. Kf3 Rg8 53. f5+ Ke5 54. Rb5+ Kd6 55. e5+ Kc6 56. Rb2) 49... Ra3 {[%emt 0:00:01]} 50. Rh6+ {[%emt 0:00:05]} Kf5 {[%emt 0:00:01]} 51. Rh5+ {[%emt 0:00:01]} Kg6 {[%emt 0:00:01]} 52. Rb5 {[%emt 0:00:03]} Kf6 {[%emt 0:00:01]} 53. Re5 {[%emt 0:00:03]} Rb3 {[%emt 0:00:01]} 54. Kg4 {[%emt 0:00:02]} Ra3 {[%emt 0:00:01]} 55. Kf3 {[%emt 0:00:13]} (55. Rf5+ $142 Kg7 56. Rg5+ Kf6 57. e4) 55... Rb3 $1 {[%emt 0:00:01]} 56. Rd5 {[%emt 0:00:05]} Ra3 {[%emt 0:00:01]} 57. Ke4 {[%emt 0:00:02]} Ra4+ {[%emt 0:00:02]} 58. Rd4 {[%emt 0:00:00]} Ra6 {[%emt 0:00:02]} 59. Rb4 {[%emt 0:00:03] And now f5 would win.} Re6+ {[%emt 0:00:02]} 60. Kf3 {[%emt 0:00:03]} Ra6 {[%emt 0:00:02]} 61. e4 {[%emt 0:00:01][%cal Be3e4,Be4e5,Be5e6][%mdl 32] Threatening mate with Kg4.} Ra1 {[%emt 0:00:02]} 62. Rb6+ {[%emt 0:00:02]} Kf7 {[%emt 0:00:01]} 63. Kg4 {[%emt 0:00:00]} Ra4 {[%emt 0:00:00]} 64. Kf5 {[%emt 0:00:02]} Ra8 {[%emt 0:00:02]} 65. Rb7+ {[%emt 0:00:02]} Kf8 {[%emt 0:00:01]} 66. e5 {[%emt 0:00:01]} Ra4 {[%emt 0:00:00]} 67. Kg5 {[%emt 0:00:02]} Re4 {[%emt 0:00:01]} 68. Kf5 {[%emt 0:00:04]} Ra4 {[%emt 0:00:02]} 69. e6 {[%emt 0:00:01] White mates.} Rc4 {[%emt 0:00:02]} 70. Kg5 {[%emt 0:00:03]} Rb4 {[%emt 0:00:04]} 71. Rxb4 {[%emt 0:00:03] Weighted Error Value: White=0.16 (very precise) /Black=0.69  Mistake:       	White=2     	Black=6      Inaccurate:     	White=2     	Black=3      OK:         	White=10    	Black=11     Best:        	White=4     	Black=1      Strong:       	White=1     	Black=1} 1-0